Workbook

Sheet HSQ_Kalkulačka
B2: Kalkulačka návratnosti investice - "Na hřistě s Husqvarnou"
B4: Týdenní čas na sekání (až 168 hodin) | C4: 140
B5: Roční počet sekacích cyklů | C5: 85
B6: Rozloha v m2 | C6: 7140
B7: Denní kapacita AM v m2 | C7: =((C4/168)*10000)*C13 -> 25000
B8: Plánovaný počet let | C8: 6
B9: Cena za 1 kWh | C9: 5
B10: Cena za 1 l paliva | C10: =IF(D10="Benzín",List2!B9,List2!B10) -> 34.05 | D10: Benzín
B11: Roční náklady na hnojiva | C11: 10000
C13: 3 | D13: Porovnávaný produkt
C14: Akční balíček Automower 550 EPOS | D14: Seznam produktů - vyberte | E14: Vlastní vstupní data
B15: Pořizovací cena | C15: =List2!B2*C13 -> 743796.6 | D15: =IF(D14="Seco Starjet P4",List2!B13,IF(HSQ_Kalkulačka!D14="Seco Starjet P6 PRO",List2!B14,IF(D14="Seco Starjet P5",List2!B15,0))) -> 0
B16: Instalace a zprovoznění | C16: 15000 | D16: 0
B17: Volitelné příslušenství | C17: 0 | D17: 0
B18: Roční spotřeba žacích nožů - Automower | C18: =(List2!F2-(8016/C8))*C13 -> 6405 | D18: 0 | E18: 0
B19: Roční spotřeba elektrické energie / paliva | C19: =((C6/10000)*List2!C2*HSQ_Kalkulačka!C9)*C13 -> 3598.56 | D19: =IF(D14="Seznam produktů - vyberte",0,C6*C5/VLOOKUP(D14,List2!A12:D15,4,0)*VLOOKUP(D14,List2!A12:C15,3,0)*C10) -> 0
B20: Roční servísní náklady | C20: =10000*C13 -> 30000 | D20: =IF(D14="Seznam produktů - vyberte",0,VLOOKUP(D14,List2!A12:E15,5,0)) -> 0
B21: Roční náklady na lidské zdroje | C21: =(30*353)*C13 -> 31770 | D21: =IF(D14="Seznam produktů - vyberte",0,(52.5*353)+(C6*C5/VLOOKUP(D14,List2!A12:D15,4,0)*353)) -> 0
B22: Roční přidané náklady na hnojiva | C22: 0 | D22: =IF(D14="Seznam produktů - vyberte",0,C11*0.75) -> 0
B23: Roční extra náklady (např. likvidace trávy) | C23: 0 | D23: =IF(D14="Seznam produktů - vyberte",0,17650) -> 0
B24: Počáteční pořizovací náklady | C24: =C15+C16+C17 -> 758796.6 | D24: =D15+D16+D17 -> 0 | E24: =E15+E16+E17 -> 0
B25: Průměrná cena za 1 rok provozu | C25: =C26/C8 -> 198239.66 | D25: =D26/C8 -> 0 | E25: =IF(E15>0,E26/C8,0) -> 0
B26: Celková cena za celou dobu provozu | C26: =C24+((C18+C19+C20+C21)*C8) -> 1189437.96 | D26: =IF(D14="Seznam produktů - vyberte",0,D24+((D19+D20+D21+D22+D23)*$C$8)) -> 0 | E26: =IF(E15>0,E24+((E19+E20+E21+E22+E23)*$C$8),0) -> 0
B27: Roční průměrná cena za údržbu 1 m2 | C27: =C25/C6 -> 27.76465826 | D27: =D25/C6 -> 0 | E27: =E25/C6 -> 0
B30: Výrobek | C30: =C14 -> Akční balíček Automower 550 EPOS | D30: =IF(D14="Seznam produktů - vyberte","",D14) ->  | E30: =IF(E15>0,"Vlastní vstupní data","") -> 
B31: Pořizovací náklady | C31: =C15+C16+C17 -> 758796.6 | D31: =IF(D14="Seznam produktů - vyberte","0",D15+D16+D17) -> 0 | E31: =E15+E16+E17 -> 0
B32: 1. rok | C32: =C31+C18+C19+C20+C21 -> 830570.16 | D32: =D31+D19+D20+D21+D22+D23 -> 0 | E32: =E31+E19+E20+E21+E22+E23 -> 0
B33: 2. rok | C33: =IF(C8>2,C32+C18+C19+C20+C21,0) -> 902343.72 | D33: =IF(C8>1,D32+D19+D20+D21+D22+D23,0) -> 0 | E33: =IF(C8>1,E32+E19+E20+E21+E22+E23,0) -> 0
B34: 3. rok | C34: =IF(C8>2,C33+C18+C19+C20+C21,0) -> 974117.28 | D34: =IF(C8>2,D33+D19+D20+D21+D22+D23,0) -> 0 | E34: =IF(C8>2,E33+E19+E20+E21+E22+E23,0) -> 0
B35: 4. rok | C35: =IF(C8>3,C34+C18+C19+C20+C21,0) -> 1045890.84 | D35: =IF(C8>3,D34+D23+D19+D20+D21+D22,0) -> 0 | E35: =IF(C8>3,E34+E19+E20+E21+E22+E23,0) -> 0
B36: 5. rok | C36: =IF(C8>4,C35+C18+C19+C20+C21,0) -> 1117664.4 | D36: =IF(C8>4,D35+D23+D19+D20+D21+D22,0) -> 0 | E36: =IF(C8>4,E35+E19+E20+E21+E22+E23,0) -> 0
B37: 6. rok | C37: =IF(C8>5,C36+C18+C19+C20+C21,0) -> 1189437.96 | D37: =IF(C8>5,D36+D23+D19+D20+D21+D22,0) -> 0 | E37: =IF(C8>5,E36+E19+E20+E21+E22+E23,0) -> 0
B51: Typ výrobku | C51: =C14 -> Akční balíček Automower 550 EPOS | D51: =IF(D14="Seznam produktů - vyberte","",D14) ->  | E51: =IF(E15>0,"Vlastní vstupní data","") -> 
B52: Roční spotřeba žacích nožů - Automower | C52: =C18 -> 6405 | D52: =IF($D$14="Seznam produktů - vyberte",0,D18) -> 0 | E52: =IF($E$15>0,E18,0) -> 0
B53: Roční spotřeba elektrické energie / paliva | C53: =C19 -> 3598.56 | D53: =IF($D$14="Seznam produktů - vyberte",0,D19) -> 0 | E53: =IF($E$15>0,E19,0) -> 0
B54: Roční servísní náklady | C54: =C20 -> 30000 | D54: =IF($D$14="Seznam produktů - vyberte",0,D20) -> 0 | E54: =IF($E$15>0,E20,0) -> 0
B55: Roční náklady na lidské zdroje | C55: =C21 -> 31770 | D55: =IF($D$14="Seznam produktů - vyberte",0,D21) -> 0 | E55: =IF($E$15>0,E21,0) -> 0
B56: Roční přidané náklady na hnojiva | C56: =C22 -> 0 | D56: =IF($D$14="Seznam produktů - vyberte",0,D22) -> 0 | E56: =IF($E$15>0,E22,0) -> 0
B57: Roční extra náklady (např. likvidace trávy) | C57: =C23 -> 0 | D57: =IF($D$14="Seznam produktů - vyberte",0,D23) -> 0 | E57: =IF($E$15>0,E23,0) -> 0
E88: Všechny uvedené ceny jsou bez DPH.

Sheet List2 (hidden)
A1: Výrobek | B1: dpc bez dph | C1: elektřina / sezona | D1: zimní servis | E1: spotřeba nožů / sezona | F1: spotřeba nožů / sezona Kč | G1: čásová náročnost
A2: Akční balíček Automower 550 EPOS | B2: 247932.2 | C2: 336 | D2: 10000 | E2: 130 | F2: =E2*26.7 -> 3471 | G2: 30
A3: Ceora 544 | B3: 563543.8 | C3: 770 | D3: 12500 | E3: 195 | F3: =E3*26.7 -> 5206.5 | G3: 30
A4: Ceora 546 | B4: 712304.2 | C4: 910 | D4: 12500 | E4: 195 | F4: =E4*26.7 -> 5206.5 | G4: 30
A9: Benzín | B9: 34.05
A10: Nafta | B10: 36.45
A12: Seznam produktů - vyberte | B12: dpc bez dph | C12: palivo / motohodina | D12: posekáno / 1 hod | E12: servis | F12: časová náročnost
A13: Seco Starjet P4 | B13: 128016 | C13: 6.05 | D13: 2475 | E13: 10000 | F13: 52.5
A14: Seco Starjet P6 PRO | B14: 210661 | C14: 6.51 | D14: 2812 | E14: 10000 | F14: 52.5
A15: Seco Starjet P5 | B15: 140413 | C15: 6.05 | D15: 2475 | E15: 10000 | F15: 52.5
A23: 1
A24: 2
A25: 3
A26: 4
A27: 5
A28: 6
A29: 7
A30: 8
A31: 9
A32: 10
A33: 11
A34: 12
A35: 13
A36: 14
A37: 15
A38: 16
A39: 17
A40: 18
A41: 19
A42: 20
A43: 21
A44: 22
A45: 23
A46: 24
A47: 25
A48: 26
A49: 27
A50: 28
A51: 29
A52: 30
A53: 31
A54: 32
A55: 33
A56: 34
A57: 35
A58: 36
A59: 37
A60: 38
A61: 39
A62: 40
A63: 41
A64: 42
A65: 43
A66: 44
A67: 45
A68: 46
A69: 47
A70: 48
A71: 49
A72: 50
A73: 51
A74: 52
A75: 53
A76: 54
A77: 55
A78: 56
A79: 57
A80: 58
A81: 59
A82: 60
A83: 61
A84: 62
A85: 63
A86: 64
A87: 65
A88: 66
A89: 67
A90: 68
A91: 69
A92: 70
A93: 71
A94: 72
A95: 73
A96: 74
A97: 75
A98: 76
A99: 77
A100: 78
A101: 79
A102: 80
A103: 81
A104: 82
A105: 83
A106: 84
A107: 85
A108: 86
A109: 87
A110: 88
A111: 89
A112: 90
A113: 91
A114: 92
A115: 93
A116: 94
A117: 95
A118: 96
A119: 97
A120: 98
A121: 99
A122: 100
A123: 101
A124: 102
A125: 103
A126: 104
A127: 105
A128: 106
A129: 107
A130: 108
A131: 109
A132: 110
A133: 111
A134: 112
A135: 113
A136: 114
A137: 115
A138: 116
A139: 117
A140: 118
A141: 119
A142: 120
A143: 121
A144: 122
A145: 123
A146: 124
A147: 125
A148: 126
A149: 127
A150: 128
A151: 129
A152: 130
A153: 131
A154: 132
A155: 133
A156: 134
A157: 135
A158: 136
A159: 137
A160: 138
A161: 139
A162: 140
A163: 141
A164: 142
A165: 143
A166: 144
A167: 145
A168: 146
A169: 147
A170: 148
A171: 149
A172: 150
A173: 151
A174: 152
A175: 153
A176: 154
A177: 155
A178: 156
A179: 157
A180: 158
A181: 159
A182: 160
A183: 161
A184: 162
A185: 163
A186: 164
A187: 165
A188: 166
A189: 167
A190: 168
